Cogmind - Beta 16 @@@ ROGUE MODE // 2025.11.05 @ 18:01:31 // Winter2019/RPGLIKE Player: Rentaro Result: Destroyed by S-27 Virus with Autogun Performance ------------- Evolutions (4) 2000 Regions Visited (4) 800 Robots Destroyed (70) 350 Value Destroyed (2065) 2065 Prototype IDs (33) 660 Alien Tech Used (0) 0 Bonus (776) 776 TOTAL SCORE: 6651 Bonus ------- Registered with UFD 300 Met Optimus in HQ 500 Friendly Fire -24 Cogmind --------- Core Integrity 0/600 Matter 292/300 Energy 100/100 System Corruption 4% Temperature Cool (0) Movement Flying (35) Location -6/Factory Parts ------- > --- POWER (1) -------- (None) > --- PROPULSION (2) --- Cooled Cesium-ion Thruster > --- UTILITY (5) ------ Deep Structural Scanner Machine Analyzer Advanced Signal Interpreter Hacking Suite A0-MCA's Component Scanner > --- WEAPON (3) ------- Autogun Battle Rifle Battle Rifle > --- INVENTORY (2) ---- Power Sword Peak State ------------ > --- POWER ------------ Micro Nuclear Core > --- PROPULSION ------- Cooled Cesium-ion Thruster > --- UTILITY ---------- Deep Structural Scanner Machine Analyzer Advanced Signal Interpreter Hacking Suite A0-MCA's Component Scanner > --- WEAPON ----------- Battle Rifle Battle Rifle Power Sword > --- INVENTORY -------- Autogun [Rating: 43] Favorites ----------- Power Light Ion Engine Engine Light Ion Engine Power Core Micro Nuclear Core Propulsion Flight Unit Leg Multireflex Exoskeleton Wheel Compact Wheel Flight Unit Flight Unit Utility Signal Interpreter Device Structural Scanner Processor Signal Interpreter Hackware Hacking Suite Protection Gun Armor Weapon Battle Rifle Energy Gun Small Laser Energy Cannon Proton Cannon Ballistic Gun Battle Rifle Launcher Grenade Launcher Special Weapon Junk Cannon Impact Weapon Makeshift Hammer Slashing Weapon Power Sword Piercing Weapon Heavy Pick Build | -11 -10 -10 -8 -6 ------- Run | Yrd Mat Sub Scr Fac Slots Evolved 7 | 4 . 1 . 2 Power . | . . . . . Propulsion 1 | 1 . . . . Utility 4 | 1 . 1 . 2 Weapon 2 | 2 . . . . Parts Attached 47 | 6 11 10 8 12 Power 3 | 1 . . . 2 Engine 2 | 1 . . . 1 Core 1 | . . . . 1 Reactor . | . . . . . Propulsion 11 | 2 4 1 2 2 Treads . | . . . . . Leg 1 | . . . . 1 Wheel 2 | 2 . . . . Hover . | . . . . . Flight 8 | . 4 1 2 1 Utility 12 | . 2 2 3 5 Device 5 | . 1 1 2 1 Storage . | . . . . . Processor 5 | . 1 . 1 3 Hackware 1 | . . . . 1 Protection 1 | . . 1 . . Artifact . | . . . . . Weapon 21 | 3 5 7 3 3 Energy Gun 3 | 3 . . . . Energy Cannon 1 | . . . 1 . Ballistic Gun 11 | . 3 6 1 1 Ballistic Cannon . | . . . . . Launcher 1 | . 1 . . . Special Weapon 1 | . . . 1 . Impact Weapon 1 | . . 1 . . Slashing Weapon 2 | . 1 . . 1 Piercing Weapon 1 | . . . . 1 Special Melee Weapon . | . . . . . Unidentified Prototypes 2 | . . 1 1 . Parts Lost 2 | . . . . 2 Power 1 | . . . . 1 Propulsion 1 | . . . . 1 Utility . | . . . . . Weapon . | . . . . . Highest Loss Streak 2 | . . . . 2 To Critical Strikes . | . . . . . Average Backups 1 | . 1 2 1 1 Power . | . . . . . Propulsion . | . . . . . Utility . | . . . . . Weapon 1 | . 1 2 1 1 Tool/Special . | . . . . . Unused Backups 2 | . 2 . . . Power . | . . . . . Propulsion . | . . . . . Utility . | . . . . . Weapon 1 | . 1 . . . Tool/Special 1 | . 1 . . . Average Slot Usage (%) 96 | . 94 94 99 96 Engine 10 | . 12 10 10 8 Wheel 1 | . 5 . . . Flight 19 | . 19 21 21 17 Device 10 | . 10 13 10 9 Processor 13 | . 7 10 14 20 Hackware 2 | . . . . 9 Protection 2 | . . 3 6 . Energy Gun 5 | . 18 . . . Ballistic Gun 22 | . 13 29 31 20 Impact Weapon 2 | . . 4 2 4 Slashing Weapon 2 | . 4 . . 3 Peak Build Rating 43 | 6 11 25 28 43 Average Rating 22 | 4 8 16 23 39 On Entrance 13 | . 6 11 25 26 Avg Prop Armor Cover (%) . | . . . . . Naked Turns . | . . . . . Heaviest Build 19 | 6 13 18 19 14 Greatest Support 46 | 37 37 18 19 46 Greatest Overweight (x) . | . . . . . Average Overweight (x) . | . . . . . Largest Inventory Capacity 2 | 1 2 2 2 2 Average Capacity 1 | . 1 2 2 2 Most Carried 2 | . 2 2 2 2 Average Carried 1 | . 1 1 1 1 Final Capacity 2 | 1 2 2 2 2 Final Carried 2 | . 2 2 1 1 Scrap Suit Usage (%) 1 | . . . 6 . Parts Cannibalized 2 | . . . 2 . Class Distribution -------------------- 28% | Derelict-Gunner 26% | Hacker-Scout 26% | Gunner 13% | Mutant 3% | Scavenger-Gunner Dominant Class ---------------- Gunner | -10/Materials Gunner | -10/Subcaves Derelict-Gunner | -8/Scraptown Hacker-Scout | -6/Factory Resources | -11 -10 -10 -8 -6 ----------- Run | Yrd Mat Sub Scr Fac Matter Collected 1739 | 199 531 492 70 447 Remotely . | . . . . . Salvage Created 2065 | 43 573 252 . 1197 Parts 125 | 4 46 24 . 51 Haulers Intercepted 5 | . 2 . . 3 Recyclers Shooed 3 | . 3 . . . Parts Field Recycled . | . . . . . Retrieved Matter . | . . . . . Parts Self-Destructed 12 | . . 12 . . Prevented . | . . . . . Parts Restored . | . . . . . Kills | -11 -10 -10 -8 -6 ------- Run | Yrd Mat Sub Scr Fac Combat Hostiles Destroyed 45 | . 16 12 . 17 Melee 8 | . . . . 8 Guns 36 | . 16 12 . 8 Classes Destroyed 14 | 1 7 1 . 5 Worker 4 | . 2 . . 2 Builder 1 | . . . . 1 Tunneler 3 | 2 1 . . . Hauler 5 | . 2 . . 3 Recycler 2 | . 1 . . 1 Mechanic 2 | . . . . 2 Operator 1 | . 1 . . . Watcher 7 | . 3 . . 4 Swarmer 17 | . 8 4 . 5 Grunt 14 | . 8 . . 6 Sentry 2 | . . . . 2 Hunter 2 | . . . . 2 Programmer 2 | . . . . 2 Subdweller 8 | . . 8 . . Best Kill Streak 8 | 2 8 4 . 4 Combat Bots Only 4 | . 4 4 . 3 Max Kills in Single Turn 2 | 1 2 1 . 1 Gunslinging 1 | . 1 . . . Exploded . | . . . . . Melee 1 | . . . . 1 Uniques/NPCs Destroyed . | . . . . . Combat | -11 -10 -10 -8 -6 -------- Run | Yrd Mat Sub Scr Fac Hostile Shots Fired 348 | . 70 70 . 208 Missed 144 | . 22 30 . 92 Hits 204 | . 48 40 . 116 Projectile 204 | . 48 40 . 116 Critical Strikes 5 | . . 1 . 4 Damage Taken 3288 | . 763 752 . 1773 Core 2721 | . 641 592 . 1488 Absorbed by Shields . | . . . . . Redirected to Core 1784 | . 414 399 . 971 Regen/Repaired (Parts) 13 | . . . 13 . Core Remaining (%) 80 | 100 . . 60 . Volleys Fired 148 | 4 78 39 . 27 Largest 3 | 3 3 3 . 3 Hottest 120 | 120 120 85 . 73 Shots Fired 363 | 12 193 101 . 57 Gun 341 | 12 174 98 . 57 Cannon . | . . . . . Launcher 22 | . 19 3 . . Special . | . . . . . Kinetic 185 | . 30 98 . 57 Thermal 156 | 12 144 . . . Explosive 22 | . 19 3 . . Electromagnetic . | . . . . . Robot Hit Streak 15 | 10 13 15 . 8 Robot Miss Streak 7 | 1 7 3 . 4 Penetration Max . | . . . . . Secondary Targets 11 | . 6 3 . 2 Max Gunslinging Chain 1 | . 1 1 . 1 Shots Hit Robots 271 | 11 93 83 . 84 Core Hits 107 | 2 44 25 . 36 Critical Kills 1 | . . 1 . . Critical Parts Destroyed 4 | . . . . 4 Critical Strikes 15 | . . 2 . 13 Destroy 2 | . . 2 . . Smash 4 | . . . . 4 Sever 7 | . . . . 7 Impale 2 | . . . . 2 Melee Attacks 105 | . 5 11 . 89 Impact 37 | . . 11 . 26 Slashing 63 | . 5 . . 58 Piercing 5 | . . . . 5 Sneak Attacks 10 | . . . . 10 Combat Hostiles 1 | . . . . 1 Follow-up Attacks . | . . . . . Damage Inflicted 5785 | 118 1164 1378 . 3125 Guns 3170 | 118 1164 1378 . 510 Cannons . | . . . . . Explosions . | . . . . . Melee 2615 | . . . . 2615 Ramming . | . . . . . Kinetic 2120 | . 232 1378 . 510 Thermal 1050 | 118 932 . . . Explosive . | . . . . . Electromagnetic . | . . . . . Impact 582 | . . . . 582 Slashing 1820 | . . . . 1820 Piercing 213 | . . . . 213 Highest Corruption 4 | . . . . 4 Average Corruption 2 | . . . . 2 Corruption Purged . | . . . . . Corruption Blocked . | . . . . . Effects 14 | . . . . 14 Message Errors 2 | . . . . 2 Matter Fused 3 | . . . . 3 Heat Flow Errors 1 | . . . . 1 Energy Discharges 3 | . . . . 3 Parts Rejected 2 | . . . . 2 Data Loss (minor) 1 | . . . . 1 Misfires 1 | . . . . 1 Alerts 1 | . . . . 1 Overload Shots . | . . . . . Overflow Damage 453 | . . . . 453 Projectiles . | . . . . . Explosions . | . . . . . Melee 453 | . . . . 453 Knockbacks 2 | . . . . 2 Impact 2 | . . . . 2 Kinetic . | . . . . . Secondary . | . . . . . Self-Inflicted Damage 15 | . 15 . . . Shots 1 | . 1 . . . Rammed . | . . . . . Targets Rammed . | . . . . . Kicked . | . . . . . Crushed . | . . . . . Highest Temperature 82 | . 10 . . 82 Average Temperature 12 | . 6 . . 33 Received Heat Transfer 651 | . 93 126 . 432 Siege Activations . | . . . . . Martial Activations 1 | . . . . 1 Total Turns 12 | . . . . 12 Longest Duration 12 | . . . . 12 Shielding Activations . | . . . . . Robots Disrupted . | . . . . . Combat Hostiles . | . . . . . Robots Corrupted 5 | . . . . 5 Combat Hostiles 1 | . . . . 1 Parts Fried 10 | . . . . 10 Impact Corruptions 11 | . . . . 11 Robots Melted . | . . . . . Combat Hostiles . | . . . . . Parts Melted 5 | 2 2 . . 1 Heat Transferred 2375 | 275 2100 . . . Parts Sabotaged . | . . . . . Parts Stolen . | . . . . . Parts Stripped . | . . . . . Power Chain Reactions . | . . . . . Alert | -11 -10 -10 -8 -6 ------- Run | Yrd Mat Sub Scr Fac Maximum Alert Level 2 | . 2 . . 1 Low Security (%) 95 | 100 95 . . 94 Level 1 4 | . 2 . . 5 Level 2 . | . 1 . . . Level 3 . | . . . . . Level 4 . | . . . . . Level 5 . | . . . . . High Security . | . . . . . Max Security . | . . . . . Peak Influence 414 | 10 414 . . 349 Initial . | . . . . . Average 59 | . 72 . . 48 Influence Increases 1873 | 10 956 170 . 737 Destroy 0b10 Robot/C 740 | . 320 80 . 340 Destroy 0b10 Robot/NC 125 | 10 50 . . 65 Destroy Leader 172 | . 70 . . 102 Successful Hack 103 | . 65 . . 38 Disable Machine 300 | . 270 . . 30 Destroy Structure 193 | . 181 . . 12 Partial Spotted 90 | . . . . 90 Lose Combat Pursuer 150 | . . 90 . 60 Influence Decreases 1524 | 10 865 173 88 388 Entered New Map 132 | . . 44 88 . Time Decay 954 | 10 454 129 . 361 Lost Part 20 | . . . . 20 Lost Ally 7 | . . . . 7 Purge Threat 411 | . 411 . . . Squads Dispatched 14 | . 2 . . 12 Investigation 8 | . 1 . . 7 Extermination 4 | . . . . 4 Reinforcement 2 | . 1 . . 1 Assault . | . . . . . Garrison . | . . . . . Intercept . | . . . . . Searches Triggered . | . . . . . Construction Impeded . | . . . . . Haulers Reinforced 1 | . . . . 1 Active Scanning Responses . | . . . . . Cargo Convoy Interrupts . | . . . . . Stealth | -11 -10 -10 -8 -6 --------- Run | Yrd Mat Sub Scr Fac Distress Signals 3 | . 2 . . 1 Communications Jammed . | . . . . . Distress Signals . | . . . . . Times Spotted 76 | . 24 18 . 34 Peak Tracking Total 7 | . 3 6 . 7 Tactical Retreats 5 | . . 2 . 3 Traps | -11 -10 -10 -8 -6 ------- Run | Yrd Mat Sub Scr Fac Traps Triggered 2 | . . 2 . . Indirectly . | . . . . . Trap Hack Attempts . | . . . . . Triggered . | . . . . . Disarmed . | . . . . . Reprogrammed . | . . . . . Reused . | . . . . . Traps Extracted . | . . . . . Installed . | . . . . . Triggered . | . . . . . Machines | -11 -10 -10 -8 -6 ---------- Run | Yrd Mat Sub Scr Fac Machines Disabled 21 | . 18 1 . 2 Max in Single Turn 2 | . 2 1 . 1 Garrison Access 2 | . . . . 2 Machines Repaired . | . . . . . Machines Dismantled . | . . . . . Machines Sabotaged . | . . . . . Overloaded Fab Kills . | . . . . . Hacking | -11 -10 -10 -8 -6 --------- Run | Yrd Mat Sub Scr Fac Machines Accessed 42 | . 9 2 10 21 Terminals 19 | . 7 . . 12 Fabricators 1 | . . . . 1 Repair Stations 1 | . . . . 1 Recycling Units 7 | . 2 . . 5 Scanalyzers . | . . . . . Garrison Access 2 | . . . . 2 Total Hacks 178 | . 32 14 69 63 Successful 153 | . 23 14 69 47 Failed 25 | . 9 . . 16 Catastrophic 1 | . . . . 1 Database Lockouts . | . . . . . Manual 52 | . 23 . . 29 Terminals 70 | . 26 . . 44 Fabricators 2 | . . . . 2 Repair Stations 1 | . . . . 1 Recycling Units 18 | . 6 . . 12 Scanalyzers . | . . . . . Garrison Access 4 | . . . . 4 Terminal Hacks 107 | . 9 14 69 15 Record 82 | . . 13 68 1 Part Schematic 1 | . . . . 1 Level Access Points 1 | . 1 . . . Terminal Index 2 | . 2 . . . Alert Level 5 | . 1 . . 4 Unreport Threat 3 | . 3 . . . Extermination Status 1 | . . . . 1 Reinforcement Status 1 | . . . . 1 Recall Extermination 2 | . . . . 2 Recall Reinforcements 2 | . . . . 2 Hauler Manifests 2 | . 1 . . 1 Registered Components 2 | . 1 . . 1 Zone Layout 1 | . . . . 1 Proto ID Catalog 2 | . . 1 1 . Fabricator Hacks 2 | . . . . 2 Load Schematic 1 | . . . . 1 Build 1 | . . . . 1 Repair Station Hacks 1 | . . . . 1 Refit 1 | . . . . 1 Recycling Unit Hacks 6 | . 2 . . 4 Retrieve Components 6 | . 2 . . 4 Scanalyzer . | . . . . . Garrison Access Hacks 2 | . . . . 2 Seal Access 2 | . . . . 2 Unauthorized Hacks 35 | . 12 . . 23 Terminals 28 | . 10 . . 18 Assimilate 6 | . 2 . . 4 Botnet 19 | . 7 . . 12 Operators 3 | . 1 . . 2 Fabricators . | . . . . . Repair Stations . | . . . . . Recycling Units 7 | . 2 . . 5 Reject 3 | . 2 . . 1 Fedlink 4 | . . . . 4 Scanalyzers . | . . . . . Garrison Access . | . . . . . Data Cores Recovered . | . . . . . Used . | . . . . . Hacking Detections 21 | . 6 . . 15 Full Trace Events 7 | . 4 . . 3 Feedback Events 1 | . . . . 1 Corruption 1 | . . . . 1 Feedback Blocked . | . . . . . Robot Schematics Acquired . | . . . . . Robots Built . | . . . . . Authchips . | . . . . . Time . | . . . . . Total Robot Build Rating . | . . . . . Part Schematics Acquired 1 | . . . . 1 Parts Built 1 | . . . . 1 Authchips . | . . . . . Time 76 | . . . . 76 Total Part Build Rating 5 | . . . . 5 Part Studies Acquired . | . . . . . Parts Repaired . | . . . . . Time . | . . . . . Parts Recycled . | . . . . . Recycled Matter . | . . . . . Retrieved Matter . | . . . . . Retrieved Components 14 | . 9 . . 5 Parts Scanalyzed . | . . . . . Part Schematics Acquired . | . . . . . Parts Damaged . | . . . . . Bothacking | -11 -10 -10 -8 -6 ------------ Run | Yrd Mat Sub Scr Fac Used RIF Installer . | . . . . . Robots Hacked . | . . . . . Non-combat . | . . . . . Combat . | . . . . . Robot Hacks Applied . | . . . . . Relay Couplers Released . | . . . . . Fabnet Peak Effective % . | . . . . . Robots Rewired . | . . . . . Allies Hacked . | . . . . . Hacks Repelled . | . . . . . Allies | -11 -10 -10 -8 -6 -------- Run | Yrd Mat Sub Scr Fac Total Allies 4 | . 1 . . 3 Largest Group 3 | . 1 1 . 3 Highest-Rated Group 62 | . 10 10 . 62 Highest-Rated Ally 26 | . 10 10 . 26 Total Orders . | . . . . . Ally Attacks . | . . . . . Total Damage . | . . . . . Kills . | . . . . . Allies Corrupted . | . . . . . Allies Melted . | . . . . . Intel | -11 -10 -10 -8 -6 ------- Run | Yrd Mat Sub Scr Fac Active Infowar (turns) 5811 | . 1662 1001 1493 1655 Optics 207 | . . 207 . . IFF 24 | . . . . 24 Structural 5736 | . 1662 1001 1493 1580 Machine Analysis 186 | . . . . 186 Robot Analysis Total . | . . . . . Derelict Logs Recovered 2 | . . 2 . . Drone Launches . | . . . . . Drone Recoveries . | . . . . . Exploration | -11 -10 -10 -8 -6 ------------- Run | Yrd Mat Sub Scr Fac Turns Passed 6232 | 93 1816 1001 1595 1727 Spaces Moved 9889 | 76 1558 1918 3074 3263 Core 14 | 9 . . . 5 Treads . | . . . . . Legs 5 | . . . . 5 Wheels 289 | 67 222 . . . Hover . | . . . . . Flight 9581 | . 1336 1918 3074 3253 Fastest Speed 32 | 50 37 37 34 32 Average Speed 36 | 94 45 37 35 32 Slowest Speed 220 | 100 100 37 37 220 Overloaded Moves 5 | . . . . 5 Propulsion Burnouts . | . . . . . Robots Hopped 26 | . 8 2 . 16 Potential Cave-ins . | . . . . . Cave-ins Triggered 1 | . 1 . . . Exploration Rate (%) 70 | 5 101 84 96 67 Regions Visited 4 Branch Regions 2 Pre-discovered Areas 4 | . . . 3 1 Known Exits Taken 3 | . 1 1 1 . Unknown Exits Taken 1 | 1 . . . . Scrap Searched 21 | . . 17 4 . Spaces Dug 15 | . 2 1 . 12 Terrain Destroyed 239 | . 218 9 . 12 Melee 15 | . 2 1 . 12 Projectile . | . . . . . AOE 224 | . 216 8 . . Terrain Rammed . | . . . . . Walls Destroyed . | . . . . . Machines Disabled . | . . . . . Actions | -11 -10 -10 -8 -6 --------- Run | Yrd Mat Sub Scr Fac Total 12002 | 85 2483 2112 3591 3731 Wait 1673 | . 801 97 489 286 Move 9835 | 75 1542 1913 3073 3232 Hop 24 | . 7 2 . 15 Pick Up 12 | . 4 3 2 3 Fast Attach 30 | 6 3 5 6 10 Attach 3 | . . 1 . 2 Detach . | . . . . . Swap 35 | . 13 9 7 6 Drop 38 | . 5 8 14 11 Fire 148 | 4 78 39 . 27 Melee 105 | . 5 11 . 89 Ram . | . . . . . Kick . | . . . . . Crush . | . . . . . Escape Stasis . | . . . . . Rewire . | . . . . . Trap . | . . . . . Miscellaneous 99 | . 25 24 . 50 Route ------- -11/Scrapyard -10/Materials (discovered 5 exits: *Mat x3 / *Min / *Sub) -10/Subcaves (discovered 4 exits: *Mat x2 / [*Rec] / *Scr) -8/Scraptown (discovered 2 exits: *Fac x2) -6/Factory (discovered 2 exits: *Fac / *Low) History --------- Turn | Location | Event 11 | -11/Scrapyard | Upgraded with Propulsion slot (x1) 11 | -11/Scrapyard | Upgraded with Utility slot (x1) 11 | -11/Scrapyard | Upgraded with Weapon slot (x2) 32 | -11/Scrapyard | Discovered new exit (range 16) 94 | -11/Scrapyard | Entered Materials 307 | -10/Materials | Build established: Gunner 559 | -10/Materials | Identified exit to Materials 675 | -10/Materials | Reached level 2 792 | -10/Materials | Discovered new exit (range 6) 886 | -10/Materials | Identified exit to Subcaves 1112 | -10/Materials | Discovered new exit (range 8) 1115 | -10/Materials | Identified exit to Mines 1368 | -10/Materials | Build established: Mutant 1739 | -10/Materials | Crushed by falling debris 1739 | -10/Materials | Core integrity fell below 50% 1759 | -10/Materials | Reached level 3 1910 | -10/Materials | Entered Subcaves 1910 | -10/Subcaves | Accompanied by 1 ally 1911 | -10/Subcaves | Approached by a straggling Scientist 1912 | -10/Subcaves | Reached level 4 1914 | -10/Subcaves | Learned Materials terminal intel 1940 | -10/Subcaves | Build established: Gunner 1983 | -10/Subcaves | Discovered new exit (range 10) 2024 | -10/Subcaves | Upgraded with Utility slot (x1) 2030 | -10/Subcaves | Disturbed a concealed Subdweller 2037 | -10/Subcaves | Disturbed a concealed Subdweller 2098 | -10/Subcaves | Identified exit to Scraptown 2186 | -10/Subcaves | Disturbed a concealed Subdweller 2322 | -10/Subcaves | Discovered new exit (range 14) 2327 | -10/Subcaves | Identified exit to Materials 2388 | -10/Subcaves | A swath of the cavern ceiling suddenly collapsed 2414 | -10/Subcaves | Shifting Twisted Machinery released Flamer 2417 | -10/Subcaves | Shifting Twisted Machinery released Sub. Beam Cannon 2487 | -10/Subcaves | Visited Clippyterm 2488 | -10/Subcaves | Learned Factory trap positions 2488 | -10/Subcaves | Learned Factory emergency access door positions 2527 | -10/Subcaves | Visited 4L-MR0's lab 2532 | -10/Subcaves | Found Prototype Protection 2532 | -10/Subcaves | Identified Gun Armor 2533 | -10/Subcaves | Attached Gun Armor, gained temporary slots: Weapon x2 2680 | -10/Subcaves | Discovered new exit (range 14) 2712 | -10/Subcaves | Shifting Twisted Machinery released Barrage Gun 2720 | -10/Subcaves | Shifting Twisted Machinery released Battle Rifle 2911 | -10/Subcaves | Entered Scraptown 2931 | -8/Scraptown | Heard Great Nut preacher, LISTEN AND RECITE! 3007 | -8/Scraptown | Discovered new exit (range 5) 3009 | -8/Scraptown | Identified exit to Factory 3018 | -8/Scraptown | Build established: Derelict-Gunner 3046 | -8/Scraptown | Visited Shadow of the Wyrm 3068 | -8/Scraptown | Visited Symbiants 3079 | -8/Scraptown | Visited Cyclists 3091 | -8/Scraptown | Visited TADAMA 3196 | -8/Scraptown | Visited Awakened 3208 | -8/Scraptown | Visited The Evicted 3227 | -8/Scraptown | Visited Red Mages 3246 | -8/Scraptown | Visited UFD Registry 3246 | -8/Scraptown | Registered with UFD as "Fluxspawn" 3260 | -8/Scraptown | Entered Cyclist Reading Room 3280 | -8/Scraptown | Visited Supply Room 3286 | -8/Scraptown | Visited Science Guys 3303 | -8/Scraptown | Visited Junk Cannon Lab 3315 | -8/Scraptown | Found Prototype Special Weapon 3315 | -8/Scraptown | Identified Junk Cannon 3830 | -8/Scraptown | Visited Junk Repository 3840 | -8/Scraptown | Visited Scrap Suit Storage 3844 | -8/Scraptown | Found Scrap Suit 3972 | -8/Scraptown | Visited A0-MCA Data Center 3974 | -8/Scraptown | Given an A+ rating by A0-MCA 3976 | -8/Scraptown | Found A0-MCA's Component Scanner 4007 | -8/Scraptown | Discovered exit to Factory (range 5) 4041 | -8/Scraptown | Visited Observation Area 4061 | -8/Scraptown | Visited Curators Association 4074 | -8/Scraptown | Visited Cartography Club 4122 | -8/Scraptown | Found Deep Structural Scanner 4127 | -8/Scraptown | Learned location of Upper Caves (-4) 4127 | -8/Scraptown | Learned location of Proximity Caves (-4) 4127 | -8/Scraptown | Learned location of Cetus (-6) 4127 | -8/Scraptown | Learned 12 Materials zone layouts 4127 | -8/Scraptown | Learned 8 Research zone layouts 4127 | -8/Scraptown | Learned 12 Research zone layouts 4127 | -8/Scraptown | Learned 8 Upper Caves zone layouts 4127 | -8/Scraptown | Learned 24 Proximity Caves zone layouts 4127 | -8/Scraptown | Learned 4 Armory zone layouts 4127 | -8/Scraptown | Learned location of 1 exit from Research 4127 | -8/Scraptown | Learned location of 3 exits from Upper Caves 4455 | -8/Scraptown | Met Optimus 4455 | -8/Scraptown | Accepted into 0bPrime 4506 | -8/Scraptown | Entered Factory 4507 | -6/Factory | Loaded intel: 80 trap records 4508 | -6/Factory | Reached level 5 4536 | -6/Factory | Upgraded with Utility slot (x1) 4565 | -6/Factory | Core integrity fell below 50% 4566 | -6/Factory | Reached level 6 4620 | -6/Factory | Discovered new exit (range 16) 4625 | -6/Factory | Identified exit to Lower Caves 4827 | -6/Factory | Loaded intel: 8 recycling unit locations 4870 | -6/Factory | Build established: Hacker-Scout 5008 | -6/Factory | Learned location of Protoforge (-2) 5159 | -6/Factory | Core integrity fell below 20% 5410 | -6/Factory | Discovered new exit (range 13) 5449 | -6/Factory | Identified exit to Factory 5949 | -6/Factory | Reached level 7 6047 | -6/Factory | Upgraded with Utility slot (x1) 6183 | -6/Factory | Fabricated Cld. Plasma Cannon? 6233 | -6/Factory | Destroyed by S-27 Virus with Autogun Last Messages --------------- 06200_ 7YHOWUZJOW0K>6TS|IADF L 06202_ Acquired 8 matter. 06212_ K-01 Serf cleans the Assembly Bed. 06217_ S-27 Virus destroyed. 06218_ K-01 Serf cleans the Assembly Bed. 06220_ Acquired 20 matter. 06221_ Acquired 10 matter. 06221_ K-01 Serf cleans the Assembly Bed. 06224_ Acquired 10 matter. 06224_ K-01 Serf cleans the Assembly Bed. 06225_ System corrupted: Matter fused (-8). 06225_ Acquired 8 matter. 06227_ Acquired 10 matter. 06227_ K-01 Serf cleans the Assembly Bed. 06229_ S-27 Virus destroyed. 06229_ Switching to secondary target: S-27 Virus. 06230_ Acquired 10 matter. 06232_ S-27 Virus destroyed. 06233_ Acquired 2 matter. [Achievement: I Think I Know What's Going On] Map ----- +----------------------------------------------------+ | + """ """ #???????#### ####????????? | | #""" """ """ #???????#########+########????????? | | #"R """ """ #??????? # ######?######## | | #""" "" "" #?????""" #""" """ ######?######## | | # "" "" "" #?????""" #"Y """ ######?######## | | # %! #?????""" #""" """ ####???######## | | ##+###########??????? # ####???#### | | ## ##??????? # """ ####???#### | | # ###! "F"" # ] """ ########### | | # ### """" # """ ########### | | !!! # ### # ########### | | !! ## ###T #########+######+################ | | !! k %=% # | | ! = k # | | % % # | | ]*= R w + | | k # | | #####+#############+#############+### # | | # ## # # ##### | | # """ ## # # ##### | | # """"" ## """""" # # # | | # """"" k ## """""" # + # | | # ## """""" # # + | | # """ ## """""" =# # # | | # """"" ## %#= s # # | | # """"" ## %@/*= # ##### | | # #########+##[ # | | # """ ######### ## # | | # """"" ######### ## # | | # """"" ! ######### ## # | | # k ############### | | ############### ##################+### | | ############### ############# #!! | | ############### ####### #! | | ############### + # | | #????????? ## #### # | | #????????? ## ##+######+## #### # | | #????????? ## ## ## #### # | | #????????? # # ## #### #^^ | | #????????? # % # ## #### # ^ | | #????????? # % # ?????## #### # | | ?????????? # h # ????## ########+#### | | ???????????? # # ????## ######## #### | | ????????????? ### ### * ## #### | | ??????????? ### ### * ## ##### #### | | ??????????? ### ### ** ## #####+###### | | # # ### ############# / ### | | # ###########+#### ## ##### #### ### | | # ########### #### ## ##### #### [### | | # ########### ### ! # """##### #### ! ### | +----------------------------------------------------+ Best States ------------- Heat Dissipation 49 Energy Generation 15 Energy Capacity 150 Matter Stores 300 Matter Capacity 300 Sight Range 21 Robot Scan Range 20 Terrain Scan Density 10 Armor Coverage 60 Evasion (%) 63 Offensive Hacking 25 Defensive Hacking 10 Item Schematics ----------------- Cld. Plasma Cannon | -6/Factory | Hacked Robot Schematics ------------------ None Fabricated ------------ Cld. Plasma Cannon | x1 | -6/Factory Repaired ---------- Nothing Studied --------- None Alien Tech Used ----------------- None Achievements -------------- I Think I Know What's Going On Mistaken Identity Wiki Contributor Challenges ------------ None RPGLIKE | -11 -10 -10 -8 -6 --------- Run | Yrd Mat Sub Scr Fac Levels Raised 6 | . 2 1 . 3 XP Earned 12775 | 3000 3510 1400 900 3965 XP Spent 11895 | 2970 1450 1400 . 6075 Upgrades 33 | 10 4 2 . 17 Propulsion Slot 1 | 1 . . . . Utility Slot 4 | 1 . 1 . 2 Weapon Slot 2 | 2 . . . . Heat Dissipation 4 | 4 . . . . Mass Support 2 | 1 . 1 . . Inventory Capacity 2 | 1 1 . . . Sight Range 1 | . . . . 1 Sensor Range 10 | . 1 . . 9 Ranged Accuracy 2 | . 2 . . . Hack Attack % 3 | . . . . 3 Hack Defense % 2 | . . . . 2 Protomatter Created 811 | . 233 177 . 401 Integrity Restored 2142 | . 492 534 . 1116 Core 2114 | . 464 534 . 1116 Parts 28 | . 28 . . . Protomatter Decayed 84 | . 53 31 . . Game ------ Seed LightpackTachyonPenetrator Manual? 0 Play Time 01:44:27 Cumulative 136.4 hours Start 2025.11.05 @ 15:16:40 End 2025.11.05 @ 18:01:31 Sessions 1 Manual Loads 0 Difficulty Rogue Special Mode Winter2019/RPGLIKE Game No. 51 Rogue 51 Adventurer 0 Explorer 0 Win Type - Total 5 Types 2/0/1/2/0/0/0/0/0/0 Lore% 51 Gallery% 47 Achievement% 46 Wizard Run 0 Options --------- Layout 2 ASCII 0 Keyboard 0 Movement Mouse Keybinds 1 Fullscreen 2 Font 20/X11 Map View 64x51 Zoom Use 0% Tactical HUD 1 Map Filters NONE Filters NONE Steam 1 RUN: 85cf56f8-e61d-4b48-a245-8305432af125